bitfinex-derivatives/quotes_BNBF0:USTF0_20250908
["timestamp","ask_amount","ask_price","bid_price","bid_amount"]
[1757358852149,0.60810872,876.56,875.26,0.19828664]
[1757358852346,0.60810872,876.55,875.26,0.19828664]
[1757358852550,0.60810872,876.54,875.26,0.19828664]
[1757358852750,2.5542601,877.53,875.26,0.19828664]
[1757358852751,0.60810872,876.53,875.26,0.19828664]
[1757358852951,0.60810872,876.52,875.26,0.19828664]
[1757358853252,0.60810872,876.51,875.26,0.19828664]
[1757358853448,0.60810872,876.5,875.26,0.19828664]
[1757358853751,0.60810872,876.49,875.26,0.19828664]
[1757358853945,0.60810872,876.48,875.26,0.19828664]
[1757358854149,0.60810872,876.47,875.26,0.19828664]
[1757358854348,0.60810872,876.46,875.26,0.19828664]
[1757358854549,0.54729785,876.45,875.26,1.72284594]
[1757358854746,1.5354784,876.7,875.26,1.72284594]
[1757358855048,1.5354784,876.92,875.26,0.19828664]
[1757358855247,1.5354784,876.93,875.26,0.19828664]
[1757358855453,1.5354784,877.14,875.37,1.0201468]
[1757358855650,1.5354784,877.31,875.34,1.0201468]
[1757358855853,1.5354784,877.13,875.45,1.0201468]
[1757358856449,1.5354784,877.12,875.26,0.19828664]
[1757358856751,1.5354784,877.1,875.26,0.19828664]
[1757358857454,1.5354784,877.11,875.26,0.19828664]
[1757358857653,1.5354784,877.12,875.26,0.19828664]
[1757358858756,1.5354784,877.04,875.26,1.72284594]
[1757358860056,1.5354784,877.04,875.26,0.19828664]
[1757358860254,1.5354784,877.05,875.26,0.19828664]
[1757358861661,1.5354784,877.33,875.26,0.19828664]
[1757358861955,0.19823299,878.3,875.26,0.19828664]
[1757358861956,1.5354784,877.32,875.26,0.19828664]
[1757358864357,1.5354784,877.33,875.26,0.19828664]
[1757358865960,1.5354784,877.32,875.26,0.19828664]
[1757358866560,0.61488621,877.31,875.26,0.19828664]
[1757358866758,0.61488621,877.3,875.26,0.19828664]
[1757358866962,0.61488621,877.29,875.26,0.19828664]
[1757358867262,0.61488621,877.28,875.26,0.19828664]
[1757358867558,0.61488621,877.27,875.26,0.19828664]
[1757358867757,0.61488621,877.26,875.26,0.19828664]
[1757358867962,0.61488621,877.25,875.26,0.19828664]
[1757358868159,0.61488621,877.24,875.26,0.19828664]
[1757358868363,0.61488621,877.23,875.26,0.19828664]
[1757358868660,0.61488621,877.22,875.26,0.19828664]
[1757358868857,0.61488621,877.21,875.26,0.19828664]
[1757358869058,0.61488621,877.2,875.26,0.19828664]
[1757358869262,0.61488621,877.19,875.26,0.19828664]
[1757358869462,1.5354784,877.32,875.26,0.19828664]
[1757358869463,0.61488621,877.18,875.26,0.19828664]
[1757358869659,0.61488621,877.17,875.26,0.19828664]
[1757358869863,0.61488621,877.16,875.26,0.19828664]
[1757358870066,0.61488621,877.15,875.26,0.19828664]
[1757358870364,0.61488621,877.14,875.26,0.19828664]
[1757358870559,0.61488621,877.13,875.26,0.19828664]
[1757358870765,0.61488621,877.12,875.26,0.19828664]
[1757358870965,0.61480882,877.11,875.26,0.19828664]
[1757358871165,0.61480882,877.1,875.26,0.19828664]
[1757358871365,1.5354784,877.08,875.33,1.5245593]
[1757358871565,0.61480882,877.07,875.33,1.5245593]
[1757358871865,0.61480882,877.06,875.33,1.5245593]
[1757358872064,0.61480882,877.05,875.33,1.5245593]
[1757358872264,0.61480882,877.04,875.33,1.5245593]
[1757358872462,0.61480882,877.03,875.35,1.5245593]
[1757358872765,1.5354784,877.06,875.35,1.5245593]
[1757358872766,0.61480882,877.02,875.35,1.5245593]
[1757358873061,0.61480882,877.01,875.35,1.5245593]
[1757358873365,0.61480882,877.0,875.35,1.5245593]
[1757358873566,0.61480882,876.99,875.37,1.5245593]
[1757358873862,0.61480882,876.98,875.37,1.5245593]
[1757358874061,0.61480882,876.97,875.37,1.5245593]
[1757358874269,0.61480882,876.96,875.37,1.5245593]
[1757358874464,0.61480882,876.95,875.37,1.5245593]
[1757358874668,0.61480882,876.94,875.37,1.5245593]
[1757358874868,0.61480882,876.93,875.37,1.5245593]
[1757358875068,0.61480882,876.92,875.37,1.5245593]
[1757358875269,0.61480882,876.91,875.37,1.5245593]
[1757358875469,0.61480882,876.9,875.37,1.5245593]
[1757358875663,0.61480882,876.89,875.37,1.5245593]
[1757358875867,0.61480882,876.88,875.4,1.5245593]
[1757358876067,0.61480882,876.87,875.38,1.5245593]
[1757358876265,0.61480882,876.86,875.38,1.5245593]
[1757358876569,0.61480882,876.85,875.4,1.5245593]
[1757358876769,0.61480882,876.84,875.4,1.5245593]
[1757358877065,0.61480882,876.83,875.4,1.5245593]
[1757358877267,0.61480882,876.82,875.4,1.5245593]
[1757358877466,0.61480882,876.81,875.4,1.5245593]
[1757358877669,0.61480882,876.8,875.39,1.5245593]
[1757358877964,0.61480882,876.79,875.39,1.5245593]
[1757358878168,0.61480882,876.78,875.39,1.5245593]
[1757358878369,0.61480882,876.77,875.4,1.5245593]
[1757358878568,0.61480882,876.76,875.4,1.5245593]
[1757358878766,0.61480882,876.75,875.4,1.5245593]
[1757358878966,1.5354784,876.99,875.4,1.5245593]
[1757358878967,0.61480882,876.74,875.4,1.5245593]
[1757358879165,0.61480882,876.73,875.4,1.5245593]
[1757358879466,0.61480882,876.72,875.4,1.5245593]
[1757358879669,0.61480882,876.71,875.4,1.5245593]
[1757358879869,0.61480882,876.7,875.4,1.5245593]
[1757358880069,0.61480882,876.69,875.4,1.5245593]
[1757358880268,0.61480882,876.68,875.4,1.5245593]
[1757358880473,0.55332794,876.67,875.43,1.5245593]
[1757358880768,1.5354784,877.15,875.26,1.72284594]
[1757358880966,1.5354784,877.17,875.26,0.19828664]
[1757358885773,1.5354784,877.16,875.26,1.72284594]
[1757358886071,1.5354784,877.18,875.26,0.19828664]
[1757358886769,1.5354784,877.17,875.26,0.19828664]
[1757358887873,1.5354784,877.18,875.26,0.19828664]
[1757358888973,1.5354784,877.15,875.26,0.19828664]
[1757358889273,1.5354784,877.1,875.26,0.19828664]
[1757358890677,1.5354784,876.95,875.32,1.5245593]
[1757358890877,1.5354784,876.97,875.3,1.5245593]
[1757358892374,1.5354784,876.97,875.31,1.5245593]
[1757358892580,0.61426776,876.96,875.31,1.5245593]
[1757358892875,0.61426776,876.95,875.31,1.5245593]
[1757358893079,0.61426776,876.94,875.31,1.5245593]
[1757358893280,1.5354784,876.9,875.36,1.5245593]
[1757358893479,0.61426776,876.89,875.36,1.5245593]
[1757358893678,0.61426776,876.88,875.36,1.5245593]
[1757358893880,0.61426776,876.87,875.36,1.5245593]
[1757358894181,0.61426776,876.86,875.37,1.5245593]
[1757358894379,1.5354784,876.89,875.37,1.5245593]
[1757358894380,0.61426776,876.85,875.37,1.5245593]
[1757358894576,0.61426776,876.84,875.37,1.5245593]
[1757358894777,0.61426776,876.83,875.37,1.5245593]
[1757358894977,0.61426776,876.82,875.37,1.5245593]
[1757358895177,0.61426776,876.81,875.37,1.5245593]
[1757358895382,2.5542601,877.64,875.37,1.5245593]
[1757358895383,0.61426776,876.8,875.37,1.5245593]
[1757358895578,0.61426776,876.79,875.41,1.5245593]
[1757358895877,0.61426776,876.78,875.37,1.5245593]
[1757358896077,0.61426776,876.77,875.37,1.5245593]
[1757358896278,0.61426776,876.76,875.37,1.5245593]
[1757358896477,0.61426776,876.75,875.37,1.5245593]
[1757358896682,0.61426776,876.74,875.37,1.5245593]
[1757358896979,0.61426776,876.73,875.36,1.5245593]
[1757358897278,0.61426776,876.72,875.36,1.5245593]
[1757358897584,0.61426776,876.71,875.36,1.5245593]
[1757358897779,0.61426776,876.7,875.36,1.5245593]
[1757358897979,0.61426776,876.69,875.36,1.5245593]
[1757358898184,0.61426776,876.68,875.36,1.5245593]
[1757358898484,0.61426776,876.67,875.29,1.5245593]
[1757358898679,0.61426776,876.66,875.29,1.5245593]
[1757358898983,0.61426776,876.65,875.31,1.5245593]
[1757358899180,0.61426776,876.64,875.3,1.5245593]
[1757358899381,0.61426776,876.63,875.31,1.5245593]
[1757358899584,0.61426776,876.62,875.3,1.5245593]
[1757358899880,0.61426776,876.62,875.26,0.19828664]
[1757358899881,0.61426776,876.61,875.31,1.5245593]
[1757358900178,0.61426776,876.6,875.31,1.5245593]
[1757358900384,0.61426776,876.59,875.31,1.5245593]
[1757358900584,0.61426776,876.58,875.31,1.5245593]
[1757358900884,0.61426776,876.57,875.31,1.5245593]
[1757358901085,0.61426776,876.56,875.29,1.5245593]
[1757358901282,0.61426776,876.55,875.31,1.5245593]
[1757358901482,1.5354784,876.98,875.31,1.5245593]
[1757358901686,0.61439673,876.97,875.31,1.5245593]
[1757358901886,0.61439673,876.96,875.31,1.5245593]
[1757358902087,0.61439673,876.95,875.31,1.5245593]
[1757358902381,0.61439673,876.94,875.31,1.5245593]
[1757358902582,0.61439673,876.93,875.31,1.5245593]
[1757358902786,0.61439673,876.92,875.31,1.5245593]
[1757358903085,0.61439673,876.91,875.31,1.5245593]
[1757358903286,0.61439673,876.9,875.31,1.5245593]
[1757358903484,0.61439673,876.89,875.31,1.5245593]
[1757358903782,0.61439673,876.88,875.31,1.5245593]
[1757358904084,0.61439673,876.87,875.31,1.5245593]
[1757358904288,0.61439673,876.86,875.31,1.5245593]
[1757358904486,0.61439673,876.85,875.31,1.5245593]
[1757358904685,0.61439673,876.84,875.31,1.5245593]
[1757358904884,0.61439673,876.83,875.31,1.5245593]
[1757358905084,0.61439673,876.82,875.31,1.5245593]
[1757358905283,0.61439673,876.81,875.41,1.5245593]
[1757358905483,0.61439673,876.8,875.41,1.5245593]
[1757358905688,0.61439673,876.79,875.41,1.5245593]
[1757358905883,0.61439673,876.78,875.32,1.5245593]
[1757358906085,0.61439673,876.77,875.32,1.5245593]
[1757358906287,0.61439673,876.76,875.32,1.5245593]
[1757358906486,0.61439673,876.75,875.32,1.5245593]
[1757358906689,0.61439673,876.74,875.32,1.5245593]
[1757358906886,0.61439673,876.73,875.32,1.5245593]
[1757358907089,0.61439673,876.72,875.32,1.5245593]
[1757358907287,0.61439673,876.71,875.33,1.5245593]
[1757358907486,0.61439673,876.7,875.33,1.5245593]
[1757358907685,0.61439673,876.69,875.33,1.5245593]
[1757358907887,0.61439673,876.68,875.35,1.5245593]
[1757358908093,0.61439673,876.67,875.35,1.5245593]
[1757358908290,0.61439673,876.66,875.35,1.5245593]
[1757358908490,0.61439673,876.65,875.35,1.5245593]
[1757358908790,0.61439673,876.64,875.35,1.5245593]
[1757358909086,0.61439673,876.63,875.35,1.5245593]
[1757358909286,0.61439673,876.62,875.36,1.5245593]
[1757358909587,0.61439673,876.61,875.36,1.5245593]
[1757358909790,0.61439673,876.6,875.35,1.5245593]
[1757358909986,0.61439673,876.59,875.35,1.5245593]
[1757358910189,0.61439673,876.58,875.36,1.5245593]
[1757358910389,0.61439673,876.57,875.36,1.5245593]
[1757358910691,0.61439673,876.56,875.36,1.5245593]
[1757358910892,0.61439673,876.55,875.36,1.5245593]
[1757358911090,1.5354784,876.96,875.33,1.5245593]
[1757358911288,2.15027282,876.95,875.34,1.5245593]
[1757358911588,0.61479442,876.94,875.34,1.5245593]
[1757358911788,0.61479442,876.93,875.34,1.5245593]
[1757358911986,0.61479442,876.93,875.26,0.19828664]
[1757358911987,0.61479442,876.92,875.33,1.5245593]
[1757358912188,0.61479442,876.91,875.33,1.5245593]
[1757358912391,0.61479442,876.9,875.34,1.5245593]
[1757358912588,0.61479442,876.89,875.34,1.5245593]
[1757358912789,0.61479442,876.88,875.34,1.5245593]
[1757358912987,0.61479442,876.87,875.34,1.5245593]
[1757358913189,0.61479442,876.86,875.34,1.5245593]
[1757358913391,2.5542601,877.8,875.35,1.5245593]
[1757358913392,0.61479442,876.85,875.35,1.5245593]
[1757358913593,0.61479442,876.84,875.35,1.5245593]
[1757358913889,0.61479442,876.83,875.35,1.5245593]
[1757358914087,0.61479442,876.82,875.35,1.5245593]
[1757358914291,0.61479442,876.81,875.41,1.5245593]
[1757358914491,0.61479442,876.8,875.41,1.5245593]
[1757358914690,0.61479442,876.79,875.41,1.5245593]
[1757358914889,0.61479442,876.78,875.41,1.5245593]
[1757358915091,0.61479442,876.77,875.41,1.5245593]
[1757358915292,0.61479442,876.76,875.44,1.5245593]
[1757358915492,0.61479442,876.75,875.44,1.5245593]
[1757358915788,0.61479442,876.74,875.44,1.5245593]
[1757358915988,0.61479442,876.73,875.41,1.5245593]
[1757358916288,0.61479442,876.72,875.41,1.5245593]
[1757358916491,0.61479442,876.71,875.41,1.5245593]
[1757358916690,0.61479442,876.7,875.41,1.5245593]
[1757358916890,0.61479442,876.69,875.41,1.5245593]
[1757358917191,0.61479442,876.68,875.41,1.5245593]
[1757358917389,0.61479442,876.67,875.41,1.5245593]
[1757358917590,0.61479442,876.66,875.41,1.5245593]
[1757358917792,0.61479442,876.65,875.41,1.5245593]
[1757358917991,0.61479442,876.64,875.41,1.5245593]
[1757358918191,0.61479442,876.63,875.42,1.5245593]
[1757358918389,0.61479442,876.62,875.42,1.5245593]
[1757358918591,0.61479442,876.61,875.42,1.5245593]
[1757358918790,0.61479442,876.6,875.42,1.5245593]
[1757358918993,0.55331498,876.59,875.42,1.5245593]
[1757358919288,1.5354784,876.85,875.43,1.5245593]
[1757358919992,1.5354784,876.83,875.45,1.5245593]
[1757358920889,1.5354784,876.86,875.42,1.5245593]
[1757358921193,1.5354784,876.88,875.41,1.5245593]
[1757358921794,1.5354784,876.84,875.44,1.5245593]
[1757358924697,1.5354784,876.85,875.44,1.5245593]
[1757358925492,1.5354784,876.84,875.44,1.5245593]
[1757358925997,1.5354784,876.88,875.41,1.5245593]
[1757358926295,1.5354784,876.86,875.42,1.5245593]
[1757358928599,1.5354784,876.83,875.45,1.5245593]
[1757358929201,1.5354784,876.81,875.47,1.5245593]
[1757358929502,1.5354784,876.82,875.4,1.5245593]
[1757358931097,0.61565119,876.81,875.37,1.5245593]
[1757358931300,0.61565119,876.8,875.37,1.5245593]
[1757358931499,0.61565119,876.79,875.38,1.5245593]
[1757358931702,0.61565119,876.78,875.37,1.5245593]
[1757358931899,0.61565119,876.77,875.4,1.5245593]
[1757358932104,0.61565119,876.76,875.4,1.5245593]
[1757358932302,0.61565119,876.75,875.39,1.5245593]
[1757358932504,0.61565119,876.74,875.39,1.5245593]
[1757358932701,0.61565119,876.73,875.4,1.5245593]
[1757358932902,0.61565119,876.72,875.38,1.5245593]
[1757358933099,0.61565119,876.71,875.38,1.5245593]
[1757358933299,0.61565119,876.7,875.38,1.5245593]
[1757358933502,0.61565119,876.69,875.38,1.5245593]
[1757358933701,0.61565119,876.68,875.38,1.5245593]
[1757358933902,0.61565119,876.67,875.38,1.5245593]
[1757358934103,0.61565119,876.66,875.38,1.5245593]
[1757358934310,0.61565119,876.65,875.38,1.5245593]
[1757358934600,0.61565119,876.64,875.38,1.5245593]
[1757358934797,2.5542601,877.6,875.26,0.19828664]
[1757358934798,0.61565119,876.63,875.34,1.5245593]
[1757358935102,0.61565119,876.62,875.36,1.5245593]
[1757358935302,0.61565119,876.61,875.36,1.5245593]
[1757358935604,0.61565119,876.6,875.37,1.5245593]
[1757358935798,0.61565119,876.59,875.37,1.5245593]
[1757358936099,0.61565119,876.58,875.35,1.5245593]
[1757358936297,0.61565119,876.57,875.35,1.5245593]
[1757358936501,0.61565119,876.56,875.35,1.5245593]
[1757358936700,0.61565119,876.55,875.35,1.5245593]
[1757358937002,0.61565119,876.54,875.35,1.5245593]
[1757358937297,0.61565119,876.53,875.35,1.5245593]
[1757358937500,0.61565119,876.52,875.35,1.5245593]
[1757358937705,0.61565119,876.51,875.35,1.5245593]
[1757358937902,1.5354784,876.86,875.35,1.5245593]
[1757358938101,0.61565544,876.85,875.35,1.5245593]
[1757358938307,1.5354784,876.83,875.37,1.5245593]
[1757358938603,2.15113384,876.82,875.37,1.5245593]
[1757358938902,2.15113384,876.81,875.36,1.5245593]
[1757358939204,0.61565544,876.8,875.36,1.5245593]
[1757358939408,0.61565544,876.79,875.32,1.5245593]
[1757358939606,0.61565544,876.78,875.28,1.5245593]
[1757358939905,0.61565544,876.77,875.28,1.5245593]
[1757358940107,0.61565544,876.76,875.27,1.5245593]
[1757358940307,0.61565544,876.75,875.27,1.5245593]
[1757358940511,0.61565544,876.74,875.27,1.5245593]
[1757358940709,0.61565544,876.73,875.28,1.5245593]
[1757358940911,0.61565544,876.72,875.28,1.5245593]
[1757358941112,0.61565544,876.71,875.26,1.72284594]
[1757358941313,0.61751929,876.7,875.26,1.72284594]
[1757358941608,0.61751929,876.69,875.26,1.72284594]
[1757358941812,0.61751929,876.68,875.26,1.72284594]
[1757358942011,0.61751929,876.67,875.26,1.72284594]
[1757358942209,0.61751929,876.66,875.26,1.72284594]
[1757358942410,0.61751929,876.65,875.26,1.72284594]
[1757358942708,0.61751929,876.64,875.26,1.72284594]
[1757358942908,0.61751929,876.63,875.26,1.72284594]
[1757358943109,0.61751929,876.62,875.26,0.19828664]
[1757358943309,0.61751929,876.61,875.26,0.19828664]
[1757358943512,0.61751929,876.6,875.26,0.19828664]
[1757358943713,0.61751929,876.59,875.26,0.19828664]
[1757358943914,0.61751929,876.58,875.26,0.19828664]
[1757358944111,0.61751929,876.57,875.26,0.19828664]
[1757358944410,0.61751929,876.56,875.26,0.19828664]
[1757358944710,0.61751929,876.55,875.33,1.5245593]
[1757358944914,0.55576737,876.54,875.33,1.5245593]
[1757358945115,1.5354784,876.74,875.33,1.5245593]
[1757358946016,1.5354784,876.71,875.27,1.5245593]
[1757358947114,1.5354784,876.67,875.3,1.5245593]
[1757358948316,1.5354784,876.68,875.29,1.5245593]
[1757358949414,1.5354784,876.64,875.32,1.5245593]
[1757358950214,1.5354784,876.64,875.33,1.5245593]
[1757358950413,1.5354784,876.63,875.32,1.5245593]
[1757358950913,2.5542601,877.32,875.3,1.5245593]
[1757358951112,2.5542601,877.37,875.3,1.5245593]
[1757358951813,2.5542601,877.37,875.29,1.5245593]
[1757358952216,2.5542601,877.38,875.29,1.5245593]
[1757358952615,2.5542601,877.38,875.26,0.19828664]
[1757358952616,2.5542601,877.36,875.3,1.5245593]
[1757358954618,2.5542601,877.36,875.29,1.5245593]
[1757358954920,2.5542601,877.35,875.29,1.5245593]
[1757358955422,2.5542601,877.36,875.28,1.5245593]
[1757358955723,2.5542601,877.38,875.28,1.5245593]
[1757358955925,2.5542601,877.38,875.26,0.19828664]
[1757358956424,2.5542601,877.49,875.26,0.19828664]
[1757358957019,0.614586,877.48,875.26,0.19828664]
[1757358957224,0.614586,877.47,875.26,0.19828664]
[1757358957424,0.614586,877.46,875.26,0.19828664]
[1757358957624,0.614586,877.45,875.26,0.19828664]
[1757358957823,0.614586,877.44,875.26,0.19828664]
[1757358958021,0.614586,877.43,875.26,0.19828664]
[1757358958227,0.614586,877.42,875.26,0.19828664]
[1757358958423,2.5542601,877.5,875.26,0.19828664]
[1757358958424,0.614586,877.41,875.26,0.19828664]
[1757358958622,0.614586,877.4,875.26,0.19828664]
[1757358958822,0.614586,877.39,875.26,0.19828664]
[1757358959125,0.614586,877.38,875.26,0.19828664]
[1757358959322,0.614586,877.37,875.26,0.19828664]
[1757358959526,0.614586,877.36,875.26,0.19828664]
[1757358959725,0.614586,877.35,875.26,0.19828664]
[1757358959925,0.614586,877.34,875.26,0.19828664]
[1757358960126,0.614586,877.33,875.26,0.19828664]
[1757358960326,0.614586,877.32,875.26,0.19828664]
[1757358960525,0.614586,877.31,875.26,0.19828664]
[1757358960730,0.614586,877.3,875.26,0.19828664]
[1757358960928,2.5542601,877.9,875.26,0.19828664]
[1757358960929,0.614586,877.29,875.26,0.19828664]
[1757358961128,0.614586,877.28,875.26,0.19828664]
[1757358961328,0.614586,877.27,875.26,0.19828664]
[1757358961631,0.614586,877.26,875.26,0.19828664]
[1757358961831,0.614586,877.25,875.26,0.19828664]
[1757358962033,0.614586,877.24,875.26,0.19828664]
[1757358962230,0.614586,877.23,875.26,0.19828664]
[1757358962530,0.614586,877.22,875.26,0.19828664]
[1757358962834,2.5542601,877.51,875.26,0.19828664]
[1757358962835,0.614586,877.21,875.26,0.19828664]
[1757358963135,0.614586,877.2,875.26,0.19828664]
[1757358963334,0.614586,877.19,875.26,0.19828664]
[1757358963533,0.614586,877.18,875.26,0.19828664]
[1757358963731,0.614586,877.17,875.26,0.19828664]
[1757358963934,0.614586,877.16,875.26,0.19828664]
[1757358964134,0.614586,877.15,875.26,0.19828664]
[1757358964337,0.614586,877.14,875.26,0.19828664]
[1757358964534,0.614586,877.13,875.26,0.19828664]
[1757358964732,0.614586,877.12,875.26,0.19828664]
[1757358964938,0.614586,877.11,875.26,0.19828664]
[1757358965138,0.614586,877.1,875.26,0.19828664]
[1757358965338,0.614586,877.09,875.26,0.19828664]
[1757358965638,0.614586,877.08,875.26,0.19828664]
[1757358965835,0.614586,877.07,875.26,0.19828664]
[1757358966035,0.614586,877.06,875.26,0.19828664]
[1757358966239,0.614586,877.05,875.26,0.19828664]
[1757358966535,0.614586,877.04,875.26,0.19828664]
[1757358966735,0.614586,877.03,875.26,0.19828664]
[1757358967036,0.614586,877.02,875.26,0.19828664]
[1757358967236,0.614586,877.01,875.26,0.19828664]
[1757358967435,0.614586,877.0,875.26,0.19828664]
[1757358967638,0.614586,876.99,875.26,0.19828664]
[1757358967938,0.614586,876.98,875.26,0.19828664]
[1757358968136,0.614586,876.97,875.26,0.19828664]
[1757358968337,0.614586,876.96,875.26,0.19828664]
[1757358968538,0.614586,876.95,875.26,0.19828664]
[1757358968735,0.614586,876.94,875.26,0.19828664]
[1757358968934,0.614586,876.93,875.26,0.19828664]
[1757358969139,0.614586,876.92,875.26,0.19828664]
[1757358969336,0.614586,876.91,875.26,0.19828664]
[1757358969535,0.614586,876.9,875.26,0.19828664]
[1757358969736,0.614586,876.89,875.26,0.19828664]
[1757358969939,0.614586,876.88,875.26,0.19828664]
[1757358970139,0.614586,876.87,875.26,0.19828664]
[1757358970337,0.614586,876.86,875.26,0.19828664]
[1757358970536,0.614586,876.85,875.26,0.19828664]
[1757358970738,0.614586,876.84,875.26,0.19828664]
[1757358970942,1.5306017,876.62,875.26,0.19828664]
[1757358971236,2.1451877,876.61,875.26,0.19828664]
[1757358971435,0.614586,876.6,875.26,0.19828664]
[1757358971635,0.614586,876.59,875.26,0.19828664]
[1757358971841,0.614586,876.58,875.26,0.19828664]
[1757358972043,0.614586,876.57,875.26,0.19828664]
[1757358972243,0.614586,876.56,875.26,0.19828664]
[1757358972444,0.614586,876.55,875.26,0.19828664]
[1757358972640,0.614586,876.54,875.26,0.19828664]
[1757358972840,0.614586,876.53,875.26,0.19828664]
[1757358973044,0.614586,876.52,875.26,0.19828664]
[1757358973245,0.614586,876.51,875.26,0.19828664]
[1757358973443,0.614586,876.5,875.26,0.19828664]
[1757358973642,0.614586,876.49,875.26,0.19828664]
[1757358973844,0.614586,876.48,875.26,0.19828664]
[1757358974145,0.614586,876.47,875.26,0.19828664]
[1757358974341,0.614586,876.46,875.26,0.19828664]
[1757358974540,0.614586,876.45,875.26,0.19828664]
[1757358974740,0.614586,876.44,875.26,0.19828664]
[1757358974944,0.614586,876.43,875.26,0.19828664]
[1757358975244,0.614586,876.42,875.26,0.19828664]
[1757358975441,0.614586,876.41,875.26,0.19828664]
[1757358975645,0.614586,876.4,875.26,0.19828664]
[1757358975944,0.614586,876.39,875.26,0.19828664]
[1757358976142,0.614586,876.38,875.26,0.19828664]
[1757358976440,0.614586,876.37,875.26,0.19828664]
[1757358976741,0.614586,876.36,875.26,0.19828664]
[1757358976945,0.614586,876.35,875.26,0.19828664]
[1757358977142,0.614586,876.34,875.26,0.19828664]
[1757358977442,0.614586,876.33,875.26,0.19828664]
[1757358977646,0.614586,876.32,875.26,0.19828664]
[1757358977943,0.614586,876.31,875.26,0.19828664]
[1757358978142,0.614586,876.3,875.26,0.19828664]
[1757358978441,0.614586,876.29,875.26,0.19828664]
[1757358978640,0.55312741,876.28,875.26,0.19828664]
[1757358978843,1.5306017,876.68,875.26,0.19828664]
[1757358978844,1.5306017,876.69,875.26,0.19828664]
[1757358979442,1.5306017,876.67,875.26,0.19828664]
[1757358981045,1.5306017,876.7,875.26,0.19828664]
[1757358981544,1.5306017,876.67,875.26,0.19828664]
[1757358982746,1.5306017,876.66,875.26,0.19828664]
[1757358983644,1.5306017,876.64,875.26,0.19828664]
[1757358983844,1.5306017,876.86,875.26,0.19828664]
[1757358984046,1.5306017,876.84,875.26,0.19828664]
[1757358984344,1.5306017,876.89,875.26,0.19828664]
[1757358984546,1.5306017,876.86,875.26,0.19828664]
[1757358986149,1.5306017,876.83,875.26,0.19828664]
[1757358986546,1.5306017,876.84,875.26,0.19828664]
[1757358987349,1.5306017,876.83,875.26,0.19828664]
[1757358987549,1.5306017,876.84,875.26,0.19828664]
[1757358987848,1.5306017,876.82,875.26,0.19828664]
[1757358988046,1.5306017,876.8,875.26,0.19828664]
[1757358988846,1.5306017,876.64,875.26,0.19828664]
[1757358989451,1.5306017,876.65,875.26,0.19828664]
[1757358990249,1.5306017,876.62,875.26,0.19828664]
[1757358990452,1.5306017,876.59,875.26,0.19828664]
[1757358990655,0.6131238,876.58,875.26,0.19828664]
[1757358990952,0.6131238,876.57,875.26,0.19828664]
[1757358991148,0.6131238,876.56,875.26,0.19828664]
[1757358991354,0.6131238,876.55,875.26,0.19828664]
[1757358991653,1.5306017,876.6,875.26,0.19828664]
[1757358991654,0.6131238,876.54,875.26,0.19828664]
[1757358991853,0.6131238,876.53,875.26,0.19828664]
[1757358992051,0.6131238,876.52,875.26,0.19828664]
[1757358992255,0.6131238,876.51,875.26,0.19828664]
[1757358992455,0.6131238,876.5,875.26,0.19828664]
[1757358992655,0.6131238,876.49,875.26,0.19828664]
[1757358992955,0.6131238,876.48,875.26,0.19828664]
[1757358993252,0.6131238,876.47,875.26,0.19828664]
[1757358993550,2.5542601,877.39,875.26,0.19828664]
[1757358993551,0.6131238,876.46,875.26,0.19828664]
[1757358993752,0.6131238,876.45,875.26,0.19828664]
[1757358993951,0.6131238,876.44,875.26,0.19828664]
[1757358994252,0.6131238,876.43,875.26,0.19828664]
[1757358994450,0.6131238,876.42,875.26,0.19828664]
[1757358994651,0.6131238,876.41,875.26,0.19828664]
[1757358994851,0.6131238,876.4,875.26,0.19828664]
[1757358995050,0.6131238,876.39,875.26,0.19828664]
[1757358995253,3.5759401,877.72,875.26,0.19828664]
[1757358995254,0.6131238,876.38,875.26,0.19828664]
[1757358995449,0.6131238,876.37,875.26,0.19828664]
[1757358995654,0.6131238,876.36,875.26,0.19828664]
[1757358995849,0.6131238,876.35,875.26,0.19828664]
[1757358996051,0.6131238,876.34,875.26,0.19828664]
[1757358996252,0.6131238,876.33,875.26,0.19828664]
[1757358996451,0.6131238,876.32,875.26,0.19828664]
[1757358996653,0.6131238,876.31,875.26,0.19828664]
[1757358996852,0.6131238,876.3,875.26,0.19828664]
[1757358997055,0.6131238,876.29,875.26,0.19828664]
[1757358997253,0.6131238,876.28,875.26,0.19828664]
[1757358997555,0.6131238,876.27,875.26,0.19828664]
[1757358997852,0.6131238,876.26,875.26,0.19828664]
[1757358998058,0.6131238,876.25,875.26,0.19828664]
[1757358998258,0.6131238,876.24,875.26,0.19828664]
[1757358998457,0.6131238,876.23,875.26,0.19828664]
[1757358998655,0.6131238,876.22,875.26,0.19828664]
[1757358998862,0.6131238,876.21,875.26,0.19828664]
[1757358999063,0.6131238,876.2,875.26,0.19828664]
[1757358999263,0.6131238,876.19,875.26,0.19828664]
[1757358999462,0.6131238,876.18,875.26,0.19828664]
[1757358999664,0.6131238,876.17,875.26,0.19828664]
[1757358999862,0.55181143,876.16,875.26,0.19828664]